bitfinex-derivatives/quotes_BTCF0:USTF0_20241025
["timestamp","ask_amount","ask_price","bid_price","bid_amount"]
[1729823293373,0.13107365,67994.0,67993.0,0.28634939]
[1729823293880,0.13107365,67994.0,67993.0,0.13917906]
[1729823294077,0.13107365,67994.0,67993.0,0.18926939]
[1729823294276,0.13107365,67994.0,67993.0,0.24175761]
[1729823297686,0.13107365,67994.0,67993.0,0.04850924]
[1729823297887,0.13107365,67994.0,67990.0,0.06271908]
[1729823298074,0.14712726,67991.0,67990.0,0.06271908]
[1729823298382,0.14712726,67991.0,67990.0,0.13905352]
[1729823298577,0.24006427,67991.0,67990.0,0.13905352]
[1729823298773,0.2280098,67991.0,67990.0,0.21262652]
[1729823298974,0.14712726,67991.0,67990.0,0.21262652]
[1729823299374,0.13036481,67991.0,67990.0,0.21262652]
[1729823299575,0.14712726,67992.0,67990.0,0.47930069]
[1729823299779,0.14712726,67992.0,67991.0,0.35847737]
[1729823301484,0.14712726,67992.0,67991.0,0.16522899]
[1729823302786,0.14712726,67992.0,67990.0,0.09132714]
[1729823302980,0.14712726,67992.0,67990.0,0.0149927]
[1729823303287,0.22069926,67992.0,67990.0,0.07633444]
[1729823303676,0.22069926,67992.0,67990.0,0.14990744]
[1729823306075,0.14712726,67992.0,67991.0,0.14990644]
[1729823306687,0.03924006,67992.0,67991.0,0.14990644]
[1729823307785,0.0848205,67994.0,67991.0,0.14990644]
[1729823307986,0.138768,67995.0,67991.0,0.14990644]
[1729823307987,0.03924006,67993.0,67991.0,0.14990644]
[1729823308187,0.03925805,67992.0,67991.0,0.14990644]
[1729823311293,0.03925854,67992.0,67991.0,0.14990644]
[1729823314790,0.138768,67995.0,67991.0,0.14990644]
[1729823314791,0.07357,67993.0,67991.0,0.14990644]
[1729823314987,0.07357,67993.0,67990.0,0.07633444]
[1729823314988,0.0652,67995.0,67990.0,0.07633444]
[1729823315190,0.073571,67992.0,67990.0,0.07633444]
[1729823315380,0.0652,67995.0,67990.0,0.07633444]
[1729823315585,0.138768,67995.0,67992.0,0.08802719]
[1729823315988,0.138768,67995.0,67992.0,0.16159719]
[1729823316183,0.138768,67995.0,67993.0,0.08802719]
[1729823316381,0.138768,67995.0,67994.0,0.09362977]
[1729823316793,0.138768,67995.0,67994.0,0.20547208]
[1729823317684,0.138768,67995.0,67994.0,0.20564242]
[1729823317885,0.138768,67995.0,67994.0,0.09381661]
[1729823319792,0.18886285,67995.0,67994.0,0.09381661]
[1729823319995,0.18886285,67995.0,67984.0,0.09616]
[1729823319996,0.38521255,67995.0,67993.0,0.07338846]
[1729823320185,0.073573,67990.0,67988.0,0.07338846]
[1729823320491,0.073577,67986.0,67984.0,0.07338846]
[1729823320691,0.12367385,67984.0,67983.0,0.07338846]
[1729823321286,0.073581,67982.0,67981.0,0.07338846]
[1729823321592,0.48447585,67982.0,67981.0,0.07338846]
[1729823321797,0.073585,67979.0,67978.0,0.08804631]
[1729823322092,0.12367985,67979.0,67978.0,0.08804631]
[1729823322292,0.1499408,67979.0,67976.0,0.16163431]
[1729823323195,0.1499408,67979.0,67976.0,0.073588]
[1729823323388,0.1819408,67979.0,67976.0,0.073588]
[1729823324283,0.1819408,67979.0,67978.0,0.07329037]
[1729823325296,0.1819408,67979.0,67977.0,0.07329037]
[1729823326297,0.1819408,67979.0,67976.0,0.14687837]
[1729823326895,0.1819408,67979.0,67976.0,0.22323417]
[1729823327093,0.1819408,67979.0,67976.0,0.29958997]
[1729823327406,0.3608,67982.0,67977.0,0.14687637]
[1729823327594,0.3608,67982.0,67981.0,0.1527116]
[1729823328799,0.434382,67982.0,67981.0,0.1527116]
[1729823329201,0.3608,67982.0,67978.0,0.1527116]
[1729823329398,0.073583,67981.0,67978.0,0.1527116]
[1729823329795,0.073583,67981.0,67980.0,0.04395255]
[1729823334105,0.1499388,67981.0,67980.0,0.04395255]
[1729823335298,0.073587,67977.0,67976.0,0.04395255]
[1729823335608,0.1499438,67976.0,67975.0,0.04395255]
[1729823335906,0.073589,67975.0,67972.0,0.073591]
[1729823336802,0.073589,67975.0,67973.0,0.1669302]
[1729823337001,0.073589,67975.0,67973.0,0.07329037]
[1729823342209,0.073589,67975.0,67974.0,0.07329037]
[1729823342905,0.073589,67975.0,67974.0,0.16700958]
[1729823343411,0.073589,67975.0,67974.0,0.09371921]
[1729823344111,0.073589,67975.0,67974.0,0.16707055]
[1729823344316,0.12369754,67975.0,67974.0,0.09371921]
[1729823344711,0.12369754,67975.0,67972.0,0.11577499]
[1729823347729,0.12369754,67975.0,67974.0,0.05010854]
[1729823347920,0.073589,67975.0,67974.0,0.10021708]
[1729823348118,0.05010854,67978.0,67974.0,0.10021708]
[1729823348325,0.3608,67982.0,67977.0,0.10021708]
[1729823348525,0.073583,67981.0,67979.0,0.073584]
[1729823348827,0.073583,67981.0,67980.0,0.05010854]
[1729823349528,0.3608,67982.0,67980.0,0.12369154]
[1729823349832,0.3608,67982.0,67981.0,0.073583]
[1729823350028,0.3608,67982.0,67981.0,0.15040206]
[1729823350424,0.073578,67986.0,67981.0,0.07681906]
[1729823350624,0.073578,67986.0,67985.0,0.10021708]
[1729823350824,0.41090854,67990.0,67985.0,0.17379508]
[1729823350825,0.073575,67988.0,67985.0,0.17379508]
[1729823351027,0.073575,67988.0,67987.0,0.10021708]
[1729823351231,0.12368354,67988.0,67985.0,0.17379508]
[1729823351830,0.12368354,67988.0,67987.0,0.08804631]
[1729823352038,0.12368354,67988.0,67987.0,0.18171012]
[1729823352439,0.12368354,67988.0,67987.0,0.09354335]
[1729823352735,0.12368354,67988.0,67987.0,0.18171012]
[1729823352931,0.12368354,67988.0,67987.0,0.2819272]
[1729823353235,0.3608,67990.0,67989.0,0.073574]
[1729823353433,0.3608,67990.0,67989.0,0.16711735]
[1729823353631,0.434373,67990.0,67989.0,0.09354335]
[1729823354235,0.434373,67990.0,67989.0,0.09349814]
[1729823357124,0.3608,67990.0,67989.0,0.16707214]
[1729823357336,0.05010854,67993.0,67990.0,0.073572]
[1729823357530,0.05010854,67992.0,67991.0,0.19371522]
[1729823358736,0.12367954,67992.0,67991.0,0.19371522]
[1729823359536,0.12367954,67992.0,67991.0,0.09349814]
[1729823359735,0.20969552,67992.0,67990.0,0.073572]
[1729823359946,0.08601598,67991.0,67990.0,0.073572]
[1729823360732,0.03984277,67993.0,67991.0,0.073571]
[1729823361035,0.03984297,67993.0,67992.0,0.13171708]
[1729823361237,0.03984297,67993.0,67992.0,0.20528808]
[1729823362844,0.08636205,67995.0,67994.0,0.073568]
[1729823363038,0.08636207,67995.0,67994.0,0.17378508]
[1729823364439,0.03996307,67995.0,67994.0,0.17378508]
[1729823366745,0.12367054,68000.0,67994.0,0.19271354]
[1729823366951,0.12367054,68000.0,67992.0,0.11966677]
[1729823366952,0.073562,68000.0,67999.0,0.10021708]
[1729823368043,0.073562,68000.0,67996.0,0.1734332]
[1729823368044,0.073564,67999.0,67996.0,0.1734332]
[1729823368443,0.05010854,67998.0,67996.0,0.1734332]
[1729823368746,0.05010854,67997.0,67996.0,0.1734332]
[1729823369052,0.05010854,67997.0,67996.0,0.26582097]
[1729823369242,0.05010854,67997.0,67996.0,0.1734332]
[1729823369443,0.12367354,67997.0,67996.0,0.07321612]
[1729823371043,0.073565,67997.0,67996.0,0.12332466]
[1729823371250,0.073565,67997.0,67996.0,0.10021708]
[1729823371450,0.073565,67997.0,67996.0,0.1734332]
[1729823372249,0.073565,67997.0,67996.0,0.26579578]
[1729823372951,0.073565,67997.0,67996.0,0.1734332]
[1729823373255,0.073565,67997.0,67996.0,0.26580492]
[1729823374254,0.073565,67997.0,67996.0,0.28143622]
[1729823375254,0.41090854,68004.0,67996.0,0.2082201]
[1729823375454,0.41090854,68004.0,67999.0,0.10021708]
[1729823375455,0.073562,68000.0,67999.0,0.10021708]
[1729823378350,0.073562,68000.0,67999.0,0.26594722]
[1729823378660,0.436278,68004.0,68001.0,0.073561]
[1729823378862,0.434358,68004.0,68003.0,0.10021708]
[1729823381954,0.52154574,68004.0,68003.0,0.10021708]
[1729823382156,0.57165428,68004.0,68003.0,0.05010854]
[1729823382352,0.49809628,68004.0,67999.0,0.01546101]
[1729823382549,0.073565,67998.0,67995.0,0.17378408]
[1729823382754,0.05010854,67999.0,67995.0,0.17378408]
[1729823382963,0.04046154,67998.0,67995.0,0.17378408]
[1729823383159,0.05010854,67999.0,67995.0,0.17378408]
[1729823383355,0.04046089,67998.0,67995.0,0.17378408]
[1729823383565,0.04046089,67997.0,67995.0,0.17378408]
[1729823383752,0.073566,67997.0,67995.0,0.17378408]
[1729823384658,0.073566,67997.0,67995.0,0.18943839]
[1729823385257,0.04059419,67996.0,67995.0,0.18943839]
[1729823387649,0.04063732,67996.0,67995.0,0.18943839]
[1729823389449,0.04063732,67996.0,67995.0,0.01565431]
[1729823389450,0.16431186,67996.0,67995.0,0.01565431]
[1729823389653,0.05010854,67995.0,67992.0,0.0315]
[1729823389859,0.05010854,67995.0,67993.0,0.20281369]
[1729823390060,0.05010854,67995.0,67994.0,0.09252611]
[1729823390356,0.05010854,67995.0,67994.0,0.20283186]
[1729823390856,0.05010854,67995.0,67994.0,0.09252611]
[1729823391260,0.05010854,67995.0,67994.0,0.20286544]
[1729823392454,0.05010854,67995.0,67994.0,0.20294347]
[1729823392652,0.12367554,67995.0,67994.0,0.20294347]
[1729823395162,0.15507554,67995.0,67994.0,0.20294347]
[1729823395566,0.15507554,67995.0,67994.0,0.09258532]
[1729823396263,0.15507554,67995.0,67994.0,0.18072184]
[1729823396859,0.12181397,67995.0,67991.0,0.01918741]
[1729823397072,0.05010854,67992.0,67988.0,0.17379208]
[1729823398873,0.05010854,67992.0,67989.0,0.073573]
[1729823399170,0.05010854,68014.0,67991.0,0.10021708]
[1729823399357,0.05010854,68014.0,68003.0,0.073559]
[1729823399358,0.3608,68013.0,68003.0,0.073559]
[1729823399667,0.05010854,68008.0,68003.0,0.17377608]
[1729823400067,0.05010854,68005.0,68003.0,0.17377608]
[1729823400371,0.3608,68013.0,68003.0,0.17377608]
[1729823400764,0.073549,68012.0,68003.0,0.17377608]
[1729823401574,0.05010854,68010.0,68003.0,0.17377608]
[1729823402260,0.05010854,68010.0,68004.0,0.073557]
[1729823402565,0.05010854,68010.0,68008.0,0.10021708]
[1729823403671,0.12365954,68010.0,68008.0,0.10021708]
[1729823404275,0.073552,68009.0,68008.0,0.10021708]
[1729823404966,0.073552,68009.0,68008.0,0.19221943]
[1729823405769,0.073552,68009.0,68008.0,0.19223467]
[1729823406676,0.073552,68009.0,68008.0,0.09201759]
[1729823407576,0.12366054,68009.0,68008.0,0.09201759]
[1729823407967,0.05010854,68008.0,68007.0,0.07330143]
[1729823408168,0.05010854,68008.0,68006.0,0.07330143]
[1729823408473,0.05010854,68006.0,68004.0,0.01911349]
[1729823408672,0.032,68005.0,68003.0,0.07330143]
[1729823408864,0.48446654,68004.0,68003.0,0.07330143]
[1729823409071,0.434358,68004.0,68003.0,0.26596425]
[1729823409369,0.434358,68004.0,68003.0,0.19266282]
[1729823409770,0.434358,68004.0,68003.0,0.21158602]
[1729823410169,0.434358,68004.0,68003.0,0.21154351]
[1729823411878,0.434358,68004.0,68003.0,0.11914028]
[1729823415080,0.073558,68004.0,68003.0,0.11914028]
[1729823419894,0.11405939,68004.0,68003.0,0.11914028]
[1729823421295,0.11405939,68004.0,68003.0,0.0189232]
[1729823421495,0.04050139,68004.0,68002.0,0.10021708]
[1729823421804,0.11406039,68003.0,68002.0,0.10021708]
[1729823422095,0.11406039,68003.0,68002.0,0.05010854]
[1729823422300,0.073562,68001.0,67999.0,0.10021708]
[1729823422600,0.073562,68000.0,67999.0,0.10021708]
[1729823423596,0.0324,68003.0,68002.0,0.07356]
[1729823423802,0.04074427,68004.0,68002.0,0.17377708]
[1729823424296,0.073557,68005.0,68002.0,0.17377708]
[1729823424601,0.04075689,68004.0,68002.0,0.05010854]
[1729823424899,0.04075689,68004.0,67998.0,0.18692191]
[1729823424900,0.073561,68002.0,67998.0,0.18692191]
[1729823425096,0.3608,68004.0,68001.0,0.05010854]
[1729823425291,0.07356,68002.0,68001.0,0.05010854]
[1729823425597,0.10021708,68001.0,67989.0,0.09448]
[1729823425797,0.073568,67994.0,67993.0,0.05010854]
[1729823425999,0.11423425,67994.0,67993.0,0.05010854]
[1729823427007,0.073568,67994.0,67993.0,0.05010854]
[1729823432906,0.3608,67996.0,67995.0,0.073567]
[1729823433096,0.36284,68004.0,67995.0,0.0924089]
[1729823433292,0.07356,68003.0,68002.0,0.10021708]
[1729823433495,0.3608,68004.0,68002.0,0.10021708]
[1729823433691,0.3608,68004.0,68002.0,0.17377708]
[1729823433893,0.3608,68004.0,68003.0,0.0301]
[1729823435096,0.44875083,68004.0,68003.0,0.0301]
[1729823436613,0.44875083,68004.0,68003.0,0.04891595]
[1729823436812,0.44875083,68004.0,68003.0,0.12247495]
[1729823441695,0.40149825,68004.0,68003.0,0.12247495]
[1729823442104,0.3608,68004.0,68003.0,0.12247495]
[1729823443010,0.434351,68010.0,68007.0,0.073554]
[1729823443210,0.434351,68010.0,68009.0,0.15886528]
[1729823443505,0.434351,68010.0,68009.0,0.10021708]
[1729823444811,0.3608,68010.0,68009.0,0.10021708]
[1729823445012,0.3608,68010.0,68009.0,0.17376908]
[1729823450214,0.44941599,68010.0,68009.0,0.17376908]
[1729823452315,0.40180605,68010.0,68009.0,0.17376908]
[1729823457127,0.3608,68010.0,68009.0,0.35356354]
[1729823457316,0.3608,68010.0,68009.0,0.35357058]
[1729823459022,0.3608,68010.0,68009.0,0.26543406]
[1729823461127,0.3608,68010.0,68009.0,0.35335157]
[1729823461324,0.3608,68010.0,68009.0,0.2654838]
[1729823464723,0.3608,68010.0,68009.0,0.16526672]
[1729823464919,0.3608,68010.0,68009.0,0.2654838]
[1729823465326,0.3608,68010.0,68009.0,0.37482244]
[1729823465929,0.3608,68010.0,68009.0,0.37482453]
[1729823467519,0.3608,68010.0,68009.0,0.26549306]
[1729823468115,0.3608,68010.0,68009.0,0.17376908]
[1729823469631,0.434351,68010.0,68009.0,0.10021708]
[1729823469825,0.48445954,68010.0,68009.0,0.19453708]
[1729823470333,0.434351,68010.0,68009.0,0.19453708]
[1729823470528,0.464651,68010.0,68009.0,0.19453708]
[1729823470824,0.05010854,68009.0,68006.0,0.09432]
[1729823471026,0.05010854,68009.0,68004.0,0.19453708]
[1729823471027,0.073554,68007.0,68004.0,0.19453708]
[1729823473228,0.04118746,68006.0,68004.0,0.19453708]
[1729823474637,0.04118746,68006.0,68004.0,0.10021708]
[1729823475245,0.073557,68005.0,68004.0,0.10021708]
[1729823476133,0.07356,68002.0,68001.0,0.09432]
[1729823476339,0.05010854,68001.0,67999.0,0.11328971]
[1729823476641,0.36284,68002.0,67999.0,0.11328971]
[1729823476833,0.12367054,68001.0,67999.0,0.01896971]
[1729823477038,0.12367054,68001.0,67998.0,0.19453708]
[1729823477237,0.073562,68001.0,68000.0,0.10021708]
[1729823477633,0.12367054,68001.0,67999.0,0.10021708]
[1729823477845,0.073563,68000.0,67999.0,0.10021708]
[1729823478246,0.11459927,68000.0,67999.0,0.10021708]
[1729823478640,0.073563,67999.0,67998.0,0.01928697]
[1729823478836,0.05010854,67998.0,67997.0,0.10021708]
[1729823479142,0.09114481,67998.0,67997.0,0.10021708]
[1729823479737,0.04103627,67998.0,67997.0,0.11968613]
[1729823479941,0.106663,67999.0,67997.0,0.29988471]
[1729823480136,0.0331,67999.0,67998.0,0.19240806]
[1729823480343,0.032,68004.0,67998.0,0.19240806]
[1729823480344,0.032,68004.0,68000.0,0.073561]
[1729823480542,0.032,68004.0,68001.0,0.28034732]
[1729823480739,0.0332,68009.0,68002.0,0.09219098]
[1729823480947,0.0332,68009.0,68008.0,0.07327294]
[1729823481135,0.0332,68009.0,68008.0,0.16546392]
[1729823481340,0.0332,68009.0,68008.0,0.09196486]
[1729823481541,0.0332,68009.0,68008.0,0.09191525]
[1729823485450,0.0307,68012.0,68009.0,0.073552]
[1729823485653,0.0307,68012.0,68009.0,0.16546725]
[1729823486156,0.0307,68012.0,68009.0,0.27472787]
[1729823486657,0.0307,68012.0,68009.0,0.16546725]
[1729823487051,0.0307,68012.0,68009.0,0.073552]
[1729823487052,0.44979632,68010.0,68009.0,0.073552]
[1729823488058,0.40198204,68010.0,68009.0,0.073552]
[1729823489258,0.04118204,68010.0,68009.0,0.434352]
[1729823490954,0.04147018,68010.0,68009.0,0.3608]
[1729823491159,0.04148068,68010.0,68009.0,0.434352]
[1729823495055,0.3608,68016.0,68009.0,0.56125239]
[1729823495264,0.3608,68016.0,68015.0,0.10021708]
[1729823495463,0.3608,68016.0,68015.0,0.19167808]
[1729823497567,0.3608,68016.0,68015.0,0.2105509]
[1729823499063,0.434345,68016.0,68015.0,0.16044236]
[1729823499360,0.434345,68016.0,68015.0,0.11033382]
[1729823500476,0.48445354,68016.0,68015.0,0.11033382]
[1729823500674,0.48445354,68016.0,68015.0,0.11043272]
[1729823502271,0.073546,68015.0,68014.0,0.04393105]
[1729823502660,0.073546,68015.0,68013.0,0.10021708]
[1729823503562,0.073546,68015.0,68013.0,0.11927196]
[1729823516785,0.3608,68016.0,68013.0,0.19281896]
[1729823517187,0.3608,68016.0,68014.0,0.201305]
[1729823517483,0.3608,68016.0,68015.0,0.09183783]
[1729823519283,0.434345,68016.0,68015.0,0.09183783]
[1729823519787,0.434345,68016.0,68015.0,0.09186639]
[1729823523094,0.434345,68016.0,68015.0,0.09181638]
[1729823524786,0.48445354,68016.0,68015.0,0.1798602]
[1729823525295,0.073547,68014.0,68013.0,0.01905488]
[1729823525493,0.073547,68014.0,68012.0,0.04402309]
[1729823525881,0.073548,68013.0,68012.0,0.04402309]
[1729823528696,0.073548,68013.0,68010.0,0.1193837]
[1729823528896,0.073548,68013.0,68012.0,0.04402878]
[1729823529094,0.073548,68013.0,68010.0,0.1193837]
[1729823529497,0.073548,68013.0,68012.0,0.04403159]
[1729823529696,0.36276,68016.0,68012.0,0.073549]
[1729823529897,0.36276,68016.0,68014.0,0.10021708]
[1729823529898,0.3608,68016.0,68014.0,0.10021708]
[1729823530092,0.434345,68016.0,68014.0,0.10021708]
[1729823532002,0.434345,68016.0,68015.0,0.20144738]
[1729823532305,0.434345,68016.0,68014.0,0.10021708]
[1729823533401,0.434345,68016.0,68015.0,0.09190903]
[1729823533701,0.434345,68016.0,68014.0,0.10021708]
[1729823535502,0.0308,68022.0,68014.0,0.20043416]
[1729823535706,0.073537,68024.0,68021.0,0.10021708]
[1729823535997,0.073537,68024.0,68021.0,1.60021708]
[1729823536593,0.073537,68024.0,68021.0,0.10021708]
[1729823538513,0.073537,68024.0,68022.0,0.09163631]
[1729823540113,0.073537,68024.0,68021.0,0.10021708]
[1729823540114,0.40225507,68023.0,68021.0,0.10021708]
[1729823540315,0.04145507,68022.0,68021.0,0.10021708]
[1729823541213,0.04145507,68022.0,68019.0,0.073541]
[1729823541414,0.3608,68023.0,68021.0,0.10021708]
[1729823541612,0.04144888,68022.0,68021.0,0.10021708]
[1729823542211,0.07354,68021.0,68018.0,0.09428]
[1729823542512,0.12364854,68021.0,68020.0,0.10021708]
[1729823542715,0.21521206,68021.0,68020.0,0.10021708]
[1729823543610,0.16510352,68021.0,68020.0,0.10021708]
[1729823544206,0.12364854,68021.0,68020.0,0.10021708]
[1729823547121,0.12364854,68021.0,68020.0,0.27966794]
[1729823547926,0.07354,68021.0,68020.0,0.27966794]
[1729823549913,0.12364854,68021.0,68020.0,0.2295594]
[1729823550117,0.12364854,68021.0,68020.0,0.0914907]
[1729823550329,0.07354,68021.0,68020.0,0.14159924]
[1729823550519,0.07354,68021.0,68020.0,0.19170778]
[1729823556522,0.07354,68021.0,68020.0,0.27966794]
[1729823557623,0.07354,68021.0,68020.0,0.27984444]
[1729823558430,0.07354,68021.0,68020.0,0.19188428]
[1729823560428,0.07354,68021.0,68020.0,0.30100573]
[1729823562133,0.07354,68021.0,68020.0,0.10021708]
[1729823565527,0.3608,68023.0,68020.0,0.14425412]
[1729823565726,0.3608,68023.0,68022.0,0.073538]
[1729823566033,0.3608,68023.0,68022.0,0.11757504]
[1729823566432,0.3608,68023.0,68022.0,0.073538]
[1729823567430,0.3608,68023.0,68022.0,0.11757504]
[1729823570342,0.3608,68023.0,68022.0,0.27415421]
[1729823571442,0.434331,68029.0,68022.0,0.30083329]
[1729823571736,0.434331,68029.0,68019.0,0.0301]
[1729823571737,0.434331,68029.0,68028.0,0.18826676]
[1729823571943,0.434331,68029.0,68028.0,0.27979035]
[1729823572143,0.434331,68029.0,68028.0,0.27968388]
[1729823572340,0.3608,68029.0,68028.0,0.36538328]
[1729823572534,0.3608,68029.0,68028.0,0.31527474]
[1729823572842,0.3608,68029.0,68028.0,0.2651662]
[1729823573338,0.3608,68029.0,68028.0,0.1916342]
[1729823573540,0.434331,68029.0,68028.0,0.1916342]
[1729823573747,0.434331,68029.0,68028.0,0.09141712]
[1729823574045,0.434331,68029.0,68028.0,0.10944419]
[1729823574643,0.434331,68029.0,68028.0,0.09141712]
[1729823574644,0.48443954,68029.0,68028.0,0.09141712]
[1729823575141,0.48443954,68029.0,68028.0,0.16477197]
[1729823575342,0.48443954,68029.0,68028.0,0.09141712]
[1729823575645,0.53454808,68029.0,68028.0,0.16477048]
[1729823575850,0.48443954,68029.0,68028.0,0.16477048]
[1729823576349,0.48443954,68029.0,68028.0,0.09141712]
[1729823577249,0.48443954,68029.0,68023.0,0.15595921]
[1729823577250,0.073534,68026.0,68025.0,0.05010854]
[1729823577444,0.11521977,68026.0,68025.0,0.10021708]
[1729823578040,0.11522216,68026.0,68025.0,0.10021708]
[1729823578253,0.073534,68026.0,68025.0,0.10021708]
[1729823585346,0.073534,68026.0,68025.0,0.19171241]
[1729823586754,0.3608,68029.0,68025.0,0.19171241]
[1729823586950,0.434331,68029.0,68028.0,0.10021708]
[1729823587151,0.434331,68029.0,68028.0,0.19171241]
[1729823589356,0.3608,68037.0,68028.0,0.24182095]
[1729823589557,0.3608,68037.0,68036.0,0.10021708]
[1729823589558,0.434322,68037.0,68036.0,0.10021708]
[1729823590660,0.3608,68037.0,68034.0,0.07333128]
[1729823590857,0.073524,68035.0,68034.0,0.07333128]
[1729823591049,0.073524,68035.0,68034.0,0.16466016]
[1729823592048,0.073524,68035.0,68034.0,0.09132888]
[1729823595454,0.12363254,68035.0,68034.0,0.09132888]
[1729823596065,0.17374108,68035.0,68034.0,0.09132888]
[1729823596259,0.10021708,68035.0,68034.0,0.09131192]
[1729823596559,0.17374108,68035.0,68034.0,0.09131192]
[1729823599560,0.073526,68033.0,68032.0,0.01817488]
[1729823599752,0.073525,68034.0,68032.0,0.09132]
[1729823599957,0.073525,68034.0,68031.0,0.10021708]
[1729823599958,0.073525,68034.0,68033.0,0.09132]
[1729823600352,0.073527,68032.0,68031.0,0.11840523]
[1729823600659,0.21972252,68032.0,68031.0,0.11840523]
[1729823603567,0.16423117,68032.0,68031.0,0.11840523]
[1729823604351,0.16417375,68032.0,68031.0,0.11840523]
[1729823606371,0.09721717,68049.0,68032.0,0.44092]
[1729823606563,0.3608,68061.0,68053.0,0.073505]
[1729823606564,0.073496,68061.0,68053.0,0.073505]
[1729823606760,0.3608,68062.0,68060.0,0.10021708]
[1729823606963,0.06811299,68061.0,68060.0,0.10021708]
[1729823607769,0.06811299,68061.0,68060.0,0.21242508]
[1729823608067,0.3608,68062.0,68060.0,0.21242508]
[1729823608273,0.42891299,68062.0,68061.0,0.09367175]
[1729823608479,0.42891299,68062.0,68060.0,0.11875333]
[1729823611572,0.42891299,68062.0,68060.0,0.1771282]
[1729823611869,0.42891299,68062.0,68061.0,0.05837487]
[1729823612167,0.42891299,68062.0,68061.0,0.15249487]
[1729823612564,0.42891299,68062.0,68061.0,0.09412]
[1729823612967,0.3608,68062.0,68061.0,0.09412]
[1729823614764,0.45659666,68062.0,68061.0,0.09412]
[1729823615171,0.52470965,68062.0,68061.0,0.09412]
[1729823615870,0.52470965,68062.0,68061.0,0.167616]
[1729823616463,0.52470965,68062.0,68061.0,0.14405841]
[1729823616464,0.5632916,68062.0,68061.0,0.14405841]
[1729823619275,0.2024916,68062.0,68061.0,0.14405841]
[1729823620272,0.34865659,68062.0,68061.0,0.14405841]
[1729823620470,0.2024916,68062.0,68061.0,0.14405841]
[1729823621075,0.14616499,68065.0,68061.0,0.24427549]
[1729823621380,0.16162996,68066.0,68065.0,0.073492]
[1729823621685,0.19332996,68072.0,68070.0,0.073486]
[1729823621875,0.19332996,68072.0,68071.0,0.10021708]
[1729823622077,0.0317,68072.0,68071.0,0.10021708]
[1729823622378,0.09981299,68072.0,68071.0,0.10021708]
[1729823624379,0.031,68080.0,68071.0,0.64694007]
[1729823624586,0.031,68080.0,68079.0,0.10021708]
[1729823625178,0.09911299,68080.0,68079.0,0.10021708]
[1729823625684,0.09911299,68080.0,68079.0,0.20043416]
[1729823625881,0.09911299,68080.0,68079.0,0.10021708]
[1729823628788,0.17258899,68080.0,68079.0,0.10021708]
[1729823629992,0.17258899,68080.0,68074.0,0.073482]
[1729823629993,0.14158999,68079.0,68074.0,0.073482]
[1729823630284,0.06811299,68076.0,68074.0,0.073482]
[1729823630489,0.08900975,68075.0,68074.0,0.073482]
[1729823630783,0.08900975,68075.0,68074.0,0.21771054]
[1729823631288,0.03483628,68075.0,68074.0,0.28622579]
[1729823632484,0.12384603,68075.0,68074.0,0.28622579]
[1729823632895,0.19732703,68075.0,68074.0,0.21274379]
[1729823634476,0.25187813,68075.0,68074.0,0.21274379]
[1729823634777,0.19732703,68075.0,68074.0,0.21274379]
[1729823636089,0.19732703,68075.0,68074.0,0.21534379]
[1729823637787,0.073481,68075.0,68074.0,0.21534379]
[1729823638688,0.073481,68075.0,68074.0,0.01840671]
[1729823638889,0.073481,68075.0,68074.0,0.19693708]
[1729823640090,0.14159399,68075.0,68074.0,0.19693708]
[1729823641592,0.14159399,68075.0,68074.0,0.05010854]
[1729823641799,0.073484,68072.0,68071.0,0.37869552]
[1729823641989,0.073484,68072.0,68071.0,0.52552406]
[1729823643190,0.073484,68072.0,68071.0,0.5756326]
[1729823643692,0.073481,68075.0,68071.0,0.5756326]
[1729823643897,0.14159399,68075.0,68074.0,0.10021708]
[1729823644090,0.14159399,68075.0,68074.0,0.19689708]
[1729823645296,0.14159399,68075.0,68074.0,0.10021708]
[1729823645597,0.14159399,68075.0,68074.0,0.19689708]
[1729823648698,0.073481,68075.0,68074.0,0.19689708]
[1729823650200,0.031,68080.0,68072.0,0.04373404]
[1729823650401,0.12359254,68072.0,68065.0,0.0008]
[1729823650601,0.05010854,68065.0,68063.0,0.04387908]
[1729823650800,0.20400599,68064.0,68063.0,0.05010854]
[1729823651104,0.20400599,68064.0,68060.0,0.04387908]
[1729823651105,0.20400599,68064.0,68060.0,0.05010854]
[1729823651311,0.20400599,68064.0,68057.0,0.09398762]
[1729823651312,0.12360554,68060.0,68059.0,0.09668]
[1729823651494,0.12360554,68060.0,68053.0,0.04387908]
[1729823651495,0.06811299,68058.0,68053.0,0.04387908]
[1729823651698,0.3608,68060.0,68045.0,0.07311341]
[1729823651699,0.073508,68050.0,68049.0,0.04387908]
[1729823651894,0.073508,68050.0,68049.0,0.05010854]
[1729823652103,0.073508,68050.0,68049.0,0.10021708]
[1729823652104,0.14162099,68050.0,68049.0,0.10021708]
[1729823652795,0.17519733,68050.0,68049.0,0.10021708]
[1729823653002,0.21418103,68050.0,68049.0,0.10021708]
[1729823653502,0.21416228,68050.0,68049.0,0.10021708]
[1729823653697,0.15179787,68050.0,68048.0,0.3608]
[1729823653903,0.05010854,68051.0,68048.0,0.3608]
[1729823653904,0.20799833,68049.0,68048.0,0.3608]
[1729823654100,0.20799833,68049.0,68048.0,0.41090854]
[1729823654505,0.20799833,68049.0,68048.0,0.46101708]
[1729823655305,0.17442199,68049.0,68048.0,0.46101708]
[1729823655500,0.20800567,68049.0,68048.0,0.46101708]
[1729823656512,0.20798678,68049.0,68048.0,0.46101708]
[1729823656707,0.13447778,68049.0,68048.0,0.46101708]
[1729823657609,0.10091299,68049.0,68048.0,0.46101708]
[1729823658913,0.17442199,68049.0,68048.0,0.46101708]
[1729823666324,0.17442199,68049.0,68047.0,0.05831254]
[1729823666513,0.073511,68047.0,68045.0,0.04374317]
[1729823666714,0.073511,68047.0,68035.0,0.3608]
[1729823666715,0.073518,68041.0,68040.0,0.05831254]
[1729823666913,0.07352,68039.0,68038.0,0.05831254]
[1729823667113,0.07352,68039.0,68035.0,0.3608]
[1729823667114,0.05010854,68038.0,68036.0,0.05831254]
[1729823667321,0.073522,68037.0,68036.0,0.05831254]
[1729823667514,0.073522,68037.0,68035.0,0.41090854]
[1729823667515,0.073523,68036.0,68035.0,0.46922108]
[1729823667821,0.14163599,68036.0,68035.0,0.46922108]
[1729823668218,0.14163599,68036.0,68035.0,0.41090854]
[1729823668521,0.14163599,68036.0,68035.0,0.3608]
[1729823672427,0.21792768,68036.0,68035.0,0.3608]
[1729823674335,0.29421937,68036.0,68035.0,0.3608]
[1729823674937,0.21792768,68036.0,68035.0,0.3608]
[1729823676439,0.14163599,68036.0,68035.0,0.43709169]